[Event "Titled Tuesday Blitz April 25 Late 2023"]
[White "Djokic, Mihailo"]
[Black "Flynn, Jacob"]
[WhiteFideId "976440"]
[BlackFideId "2509393"]
[WhiteElo "2294"]
[BlackElo "2053"]
[Result "0-1"]
[Round "05"]
[TimeControl "180+2"]
[Date "2023.04.25"]
[WhiteClock "0:00:12"]
[BlackClock "0:00:20"]

1. e4 {[%clk 0:03:00]}  e5 {[%clk 0:03:00]} 2. Nf3 {[%clk 0:03:01]}  Nc6 {[%clk 0:03:01]} 3. Nc3 {[%clk 0:03:01]}  Nf6 {[%clk 0:03:01]} 4. Bb5 {[%clk 0:03:02]}  Bb4 {[%clk 0:03:01]} 5. O-O {[%clk 0:03:01]}  O-O {[%clk 0:03:01]} 6. d3 {[%clk 0:03:01]}  Bxc3 {[%clk 0:03:02]} 7. bxc3 {[%clk 0:03:01]}  d6 {[%clk 0:03:02]} 8. Re1 {[%clk 0:03:02]}  h6 {[%clk 0:03:02]} 9. d4 {[%clk 0:03:02]}  Qe7 {[%clk 0:03:00]} 10. Ba3 {[%clk 0:02:59]}  Nd7 {[%clk 0:02:54]} 11. Rb1 {[%clk 0:02:57]}  a6 {[%clk 0:02:44]} 12. Bd3 {[%clk 0:02:56]}  Re8 {[%clk 0:02:36]} 13. Qd2 {[%clk 0:02:56]}  Nf6 {[%clk 0:02:18]} 14. h3 {[%clk 0:02:53]}  b6 {[%clk 0:02:10]} 15. Bb2 {[%clk 0:02:43]}  Bd7 {[%clk 0:02:10]} 16. c4 {[%clk 0:02:42]}  exd4 {[%clk 0:02:06]} 17. Nxd4 {[%clk 0:02:42]}  Nxd4 {[%clk 0:01:59]} 18. Bxd4 {[%clk 0:02:42]}  Qd8 {[%clk 0:01:47]} 19. Qf4 {[%clk 0:02:39]}  Bc6 {[%clk 0:01:43]} 20. Rbd1 {[%clk 0:02:34]}  Nd7 {[%clk 0:01:43]} 21. e5 {[%clk 0:02:29]}  dxe5 {[%clk 0:01:32]} 22. Bxe5 {[%clk 0:02:29]}  Qg5 {[%clk 0:01:14]} 23. Qxg5 {[%clk 0:02:23]}  hxg5 {[%clk 0:01:15]} 24. Bxc7 {[%clk 0:02:23]}  Rxe1+ {[%clk 0:01:09]} 25. Rxe1 {[%clk 0:02:23]}  Rc8 {[%clk 0:01:10]} 26. Bf5 {[%clk 0:02:21]}  Rxc7 {[%clk 0:01:07]} 27. Re8+ {[%clk 0:02:19]}  Nf8 {[%clk 0:01:07]} 28. Rb8 {[%clk 0:02:19]}  b5 {[%clk 0:01:05]} 29. cxb5 {[%clk 0:02:13]}  Bxb5 {[%clk 0:01:06]} 30. Kh2 {[%clk 0:02:09]}  g6 {[%clk 0:01:06]} 31. Be4 {[%clk 0:02:08]}  Kg7 {[%clk 0:01:06]} 32. Rb6 {[%clk 0:02:05]}  Ne6 {[%clk 0:01:03]} 33. Rd6 {[%clk 0:01:56]}  Nc5 {[%clk 0:00:58]} 34. Bd5 {[%clk 0:01:56]}  Rd7 {[%clk 0:00:56]} 35. Rxd7 {[%clk 0:01:54]}  Nxd7 {[%clk 0:00:56]} 36. Kg3 {[%clk 0:01:53]}  Nb6 {[%clk 0:00:48]} 37. Bb7 {[%clk 0:01:52]}  a5 {[%clk 0:00:46]} 38. Kf3 {[%clk 0:01:50]}  Bc4 {[%clk 0:00:45]} 39. a3 {[%clk 0:01:46]}  Bd5+ {[%clk 0:00:45]} 40. Bxd5 {[%clk 0:01:46]}  Nxd5 {[%clk 0:00:46]} 41. Ke4 {[%clk 0:01:46]}  Nf4 {[%clk 0:00:34]} 42. c4 {[%clk 0:01:04]}  Kf6 {[%clk 0:00:30]} 43. h4 {[%clk 0:00:49]}  Ke6 {[%clk 0:00:20]} 44. Kf3 {[%clk 0:00:18]}  Nd3 {[%clk 0:00:18]} 45. hxg5 {[%clk 0:00:17]}  Ne5+ {[%clk 0:00:18]} 46. Ke4 {[%clk 0:00:16]}  Nxc4 {[%clk 0:00:19]} 47. a4 {[%clk 0:00:15]}  Nb6 {[%clk 0:00:19]} 48. Kd4 {[%clk 0:00:13]}  Nxa4 {[%clk 0:00:20]} 49. Kc4 {[%clk 0:00:13]}  Nb6+ {[%clk 0:00:19]} 50. Kb5 {[%clk 0:00:11]}  a4 {[%clk 0:00:20]} 51. Kb4 {[%clk 0:00:12]}  Kf5 {[%clk 0:00:20]} 0-1


[Site "https://www.chess.com"]

[Event "Titled Tuesday Blitz April 25 Late 2023"]
[White "Averjanov, Alexey"]
[Black "Baltic, Fatih"]
[WhiteFideId "14109867"]
[BlackFideId "12979090"]
[WhiteElo "2399"]
[BlackElo "2200"]
[Result "1-0"]
[Round "05"]
[TimeControl "180+2"]
[Date "2023.04.25"]
[WhiteClock "0:01:44"]
[BlackClock "0:00:45"]

1. d4 {[%clk 0:03:00]}  Nf6 {[%clk 0:02:55]} 2. c4 {[%clk 0:03:01]}  g6 {[%clk 0:02:53]} 3. Nc3 {[%clk 0:03:00]}  Bg7 {[%clk 0:02:51]} 4. e4 {[%clk 0:03:01]}  d6 {[%clk 0:02:50]} 5. Be2 {[%clk 0:03:01]}  O-O {[%clk 0:02:49]} 6. Nf3 {[%clk 0:03:01]}  Bg4 {[%clk 0:02:47]} 7. Ng1 {[%clk 0:03:01]}  Bxe2 {[%clk 0:02:46]} 8. Ngxe2 {[%clk 0:03:02]}  c5 {[%clk 0:02:43]} 9. d5 {[%clk 0:03:01]}  e6 {[%clk 0:02:40]} 10. O-O {[%clk 0:03:00]}  exd5 {[%clk 0:02:40]} 11. exd5 {[%clk 0:03:01]}  Re8 {[%clk 0:02:38]} 12. b3 {[%clk 0:02:57]}  Ne4 {[%clk 0:02:35]} 13. Bb2 {[%clk 0:02:57]}  Nxc3 {[%clk 0:02:35]} 14. Bxc3 {[%clk 0:02:57]}  Nd7 {[%clk 0:02:31]} 15. Bxg7 {[%clk 0:02:54]}  Kxg7 {[%clk 0:02:32]} 16. Nc3 {[%clk 0:02:54]}  Qf6 {[%clk 0:02:32]} 17. Qd2 {[%clk 0:02:52]}  a6 {[%clk 0:02:30]} 18. Rfe1 {[%clk 0:02:52]}  Ne5 {[%clk 0:02:23]} 19. Re3 {[%clk 0:02:47]}  Ng4 {[%clk 0:02:16]} 20. Rxe8 {[%clk 0:02:45]}  Rxe8 {[%clk 0:02:14]} 21. h3 {[%clk 0:02:42]}  Ne5 {[%clk 0:01:51]} 22. Re1 {[%clk 0:02:40]}  Re7 {[%clk 0:01:47]} 23. Re3 {[%clk 0:02:39]}  Nd7 {[%clk 0:01:45]} 24. Qe2 {[%clk 0:02:37]}  Re5 {[%clk 0:01:35]} 25. Rxe5 {[%clk 0:02:31]}  Qxe5 {[%clk 0:01:23]} 26. Qxe5+ {[%clk 0:02:29]}  dxe5 {[%clk 0:01:24]} 27. Kf1 {[%clk 0:02:19]}  f5 {[%clk 0:01:24]} 28. Ke2 {[%clk 0:02:18]}  Kf6 {[%clk 0:01:24]} 29. Ke3 {[%clk 0:02:18]}  Ke7 {[%clk 0:01:23]} 30. a3 {[%clk 0:02:17]}  Kd6 {[%clk 0:01:22]} 31. g4 {[%clk 0:02:12]}  Nf6 {[%clk 0:01:13]} 32. f3 {[%clk 0:02:13]}  Ne8 {[%clk 0:01:08]} 33. a4 {[%clk 0:02:12]}  b6 {[%clk 0:01:06]} 34. Ne2 {[%clk 0:02:08]}  Ke7 {[%clk 0:01:06]} 35. Kd3 {[%clk 0:02:05]}  Nd6 {[%clk 0:01:06]} 36. Ng3 {[%clk 0:02:04]}  Kf6 {[%clk 0:01:05]} 37. h4 {[%clk 0:01:57]}  a5 {[%clk 0:01:02]} 38. Ne2 {[%clk 0:01:53]}  Ke7 {[%clk 0:00:55]} 39. Nc3 {[%clk 0:01:53]}  Kd7 {[%clk 0:00:53]} 40. Nb5 {[%clk 0:01:50]}  Nxb5 {[%clk 0:00:53]} 41. axb5 {[%clk 0:01:51]}  Kd6 {[%clk 0:00:53]} 42. Ke3 {[%clk 0:01:46]}  Ke7 {[%clk 0:00:50]} 43. h5 {[%clk 0:01:46]}  Kd6 {[%clk 0:00:49]} 44. Kf2 {[%clk 0:01:46]}  gxh5 {[%clk 0:00:44]} 45. gxf5 {[%clk 0:01:44]}  Ke7 {[%clk 0:00:44]} 46. Kg3 {[%clk 0:01:44]}  Kf6 {[%clk 0:00:45]} 47. d6 {[%clk 0:01:44]} 1-0


[Site "https://www.chess.com"]

[Event "Titled Tuesday Blitz April 25 Late 2023"]
[White "Prieto Aranguren, Alain"]
[Black "Bartel, Mateusz"]
[WhiteFideId "2268906"]
[BlackFideId "1112635"]
[WhiteElo "2209"]
[BlackElo "2521"]
[Result "0-1"]
[Round "05"]
[TimeControl "180+2"]
[Date "2023.04.25"]
[WhiteClock "0:00:15"]
[BlackClock "0:00:34"]

1. d4 {[%clk 0:02:54]}  Nf6 {[%clk 0:02:56]} 2. c4 {[%clk 0:02:52]}  Nc6 {[%clk 0:02:57]} 3. Nf3 {[%clk 0:02:50]}  e6 {[%clk 0:02:57]} 4. g3 {[%clk 0:02:50]}  Bb4+ {[%clk 0:02:55]} 5. Bd2 {[%clk 0:02:50]}  Bxd2+ {[%clk 0:02:52]} 6. Qxd2 {[%clk 0:02:49]}  d6 {[%clk 0:02:45]} 7. Nc3 {[%clk 0:02:47]}  O-O {[%clk 0:02:46]} 8. Bg2 {[%clk 0:02:46]}  e5 {[%clk 0:02:43]} 9. O-O {[%clk 0:02:43]}  Bg4 {[%clk 0:02:41]} 10. e3 {[%clk 0:02:29]}  Bxf3 {[%clk 0:02:29]} 11. Bxf3 {[%clk 0:02:28]}  exd4 {[%clk 0:02:29]} 12. exd4 {[%clk 0:02:26]}  Qd7 {[%clk 0:02:29]} 13. Rfe1 {[%clk 0:02:24]}  Qh3 {[%clk 0:02:21]} 14. Bg2 {[%clk 0:02:21]}  Qg4 {[%clk 0:02:21]} 15. Ne4 {[%clk 0:02:14]}  Nxe4 {[%clk 0:02:11]} 16. Rxe4 {[%clk 0:02:11]}  Qd7 {[%clk 0:02:12]} 17. Rae1 {[%clk 0:02:09]}  Rae8 {[%clk 0:02:12]} 18. Rxe8 {[%clk 0:02:06]}  Rxe8 {[%clk 0:02:12]} 19. Rxe8+ {[%clk 0:01:58]}  Qxe8 {[%clk 0:02:13]} 20. Qe3 {[%clk 0:01:52]}  Qd8 {[%clk 0:01:55]} 21. Bxc6 {[%clk 0:01:42]}  bxc6 {[%clk 0:01:54]} 22. b3 {[%clk 0:01:41]}  g6 {[%clk 0:01:53]} 23. Kg2 {[%clk 0:01:41]}  Kg7 {[%clk 0:01:50]} 24. h4 {[%clk 0:01:40]}  a5 {[%clk 0:01:50]} 25. Qe4 {[%clk 0:01:38]}  Qd7 {[%clk 0:01:41]} 26. Qf4 {[%clk 0:01:33]}  Qe6 {[%clk 0:01:38]} 27. Qe3 {[%clk 0:01:24]}  Qf6 {[%clk 0:01:14]} 28. Qf4 {[%clk 0:01:17]}  Qxf4 {[%clk 0:01:04]} 29. gxf4 {[%clk 0:01:17]}  Kf6 {[%clk 0:00:54]} 30. Kf3 {[%clk 0:00:58]}  Kf5 {[%clk 0:00:54]} 31. a3 {[%clk 0:00:55]}  c5 {[%clk 0:00:54]} 32. d5 {[%clk 0:00:47]}  f6 {[%clk 0:00:44]} 33. Kg3 {[%clk 0:00:27]}  Ke4 {[%clk 0:00:43]} 34. f3+ {[%clk 0:00:21]}  Kf5 {[%clk 0:00:39]} 35. a4 {[%clk 0:00:18]}  h5 {[%clk 0:00:35]} 36. Kg2 {[%clk 0:00:18]}  Kxf4 {[%clk 0:00:35]} 37. Kf2 {[%clk 0:00:18]}  g5 {[%clk 0:00:35]} 38. hxg5 {[%clk 0:00:17]}  fxg5 {[%clk 0:00:35]} 39. Kg2 {[%clk 0:00:17]}  Ke3 {[%clk 0:00:34]} 40. Kg3 {[%clk 0:00:17]}  Kd3 {[%clk 0:00:34]} 41. f4 {[%clk 0:00:15]}  gxf4+ {[%clk 0:00:34]} 0-1


[Site "https://www.chess.com"]

[Event "Titled Tuesday Blitz April 25 Late 2023"]
[White "Karamsetty, Jeevan"]
[Black "Preotu, Razvan"]
[WhiteFideId "2025337"]
[BlackFideId "2613280"]
[WhiteElo "2111"]
[BlackElo "2407"]
[Result "1-0"]
[Round "05"]
[TimeControl "180+2"]
[Date "2023.04.25"]
[WhiteClock "0:00:07"]
[BlackClock "0:00:02"]

1. e4 {[%clk 0:03:00]}  c5 {[%clk 0:02:53]} 2. Nc3 {[%clk 0:03:01]}  d6 {[%clk 0:02:53]} 3. f4 {[%clk 0:02:58]}  g6 {[%clk 0:02:52]} 4. Nf3 {[%clk 0:02:58]}  Bg7 {[%clk 0:02:53]} 5. Bb5+ {[%clk 0:02:58]}  Bd7 {[%clk 0:02:53]} 6. Bc4 {[%clk 0:02:59]}  Nc6 {[%clk 0:02:52]} 7. O-O {[%clk 0:02:56]}  e6 {[%clk 0:02:48]} 8. d3 {[%clk 0:02:52]}  Nge7 {[%clk 0:02:39]} 9. Qe1 {[%clk 0:02:40]}  O-O {[%clk 0:02:38]} 10. a4 {[%clk 0:02:27]}  Nd4 {[%clk 0:02:03]} 11. Nxd4 {[%clk 0:02:13]}  cxd4 {[%clk 0:02:03]} 12. Ne2 {[%clk 0:02:10]}  d5 {[%clk 0:02:04]} 13. Bb3 {[%clk 0:02:03]}  dxe4 {[%clk 0:02:03]} 14. dxe4 {[%clk 0:02:04]}  d3 {[%clk 0:01:38]} 15. Nc3 {[%clk 0:01:46]}  Nc6 {[%clk 0:01:39]} 16. e5 {[%clk 0:01:28]}  Nd4 {[%clk 0:01:39]} 17. Qf2 {[%clk 0:01:23]}  Bc6 {[%clk 0:01:28]} 18. Be3 {[%clk 0:01:19]}  Nxb3 {[%clk 0:00:41]} 19. cxb3 {[%clk 0:01:19]}  Qd7 {[%clk 0:00:42]} 20. Rad1 {[%clk 0:01:13]}  b6 {[%clk 0:00:42]} 21. Rd2 {[%clk 0:01:06]}  Rfd8 {[%clk 0:00:38]} 22. Rfd1 {[%clk 0:01:05]}  Bf8 {[%clk 0:00:38]} 23. Qf1 {[%clk 0:00:57]}  Qb7 {[%clk 0:00:28]} 24. Rxd3 {[%clk 0:00:55]}  Rxd3 {[%clk 0:00:28]} 25. Rxd3 {[%clk 0:00:55]}  Be7 {[%clk 0:00:22]} 26. Rd2 {[%clk 0:00:53]}  h5 {[%clk 0:00:22]} 27. Qd1 {[%clk 0:00:50]}  h4 {[%clk 0:00:22]} 28. h3 {[%clk 0:00:41]}  Kg7 {[%clk 0:00:21]} 29. Qg4 {[%clk 0:00:39]}  Rh8 {[%clk 0:00:21]} 30. Bf2 {[%clk 0:00:32]}  Rh5 {[%clk 0:00:21]} 31. Ne2 {[%clk 0:00:29]}  Bd5 {[%clk 0:00:20]} 32. Nd4 {[%clk 0:00:27]}  Bc5 {[%clk 0:00:15]} 33. f5 {[%clk 0:00:24]}  exf5 {[%clk 0:00:08]} 34. Qf4 {[%clk 0:00:15]}  Bxg2 {[%clk 0:00:04]} 35. Bxh4 {[%clk 0:00:15]}  Bd5 {[%clk 0:00:03]} 36. Bf6+ {[%clk 0:00:14]}  Kh7 {[%clk 0:00:04]} 37. Kh2 {[%clk 0:00:08]}  Bxd4 {[%clk 0:00:02]} 38. Qxd4 {[%clk 0:00:07]} 1-0


[Site "https://www.chess.com"]

[Event "Titled Tuesday Blitz April 25 Late 2023"]
[White "Tarlabasi, Emirhan"]
[Black "Womacka, Mathias"]
[WhiteFideId "6350275"]
[BlackFideId "4611390"]
[WhiteElo "2200"]
[BlackElo "2377"]
[Result "0-1"]
[Round "05"]
[TimeControl "180+2"]
[Date "2023.04.25"]
[WhiteClock "0:00:20"]
[BlackClock "0:01:20"]

1. d4 {[%clk 0:02:53]}  Nf6 {[%clk 0:02:58]} 2. Nf3 {[%clk 0:02:53]}  e6 {[%clk 0:02:58]} 3. Bf4 {[%clk 0:02:52]}  c5 {[%clk 0:02:58]} 4. e3 {[%clk 0:02:53]}  d5 {[%clk 0:02:58]} 5. Nbd2 {[%clk 0:02:51]}  Bd6 {[%clk 0:02:58]} 6. Bg3 {[%clk 0:02:51]}  O-O {[%clk 0:02:57]} 7. c3 {[%clk 0:02:49]}  Qc7 {[%clk 0:02:57]} 8. Bd3 {[%clk 0:02:43]}  Nbd7 {[%clk 0:02:56]} 9. O-O {[%clk 0:02:41]}  b6 {[%clk 0:02:54]} 10. Qe2 {[%clk 0:02:40]}  Bb7 {[%clk 0:02:54]} 11. Rad1 {[%clk 0:02:39]}  e5 {[%clk 0:02:52]} 12. dxe5 {[%clk 0:02:39]}  Nxe5 {[%clk 0:02:53]} 13. Nxe5 {[%clk 0:02:39]}  Bxe5 {[%clk 0:02:54]} 14. Bxe5 {[%clk 0:02:29]}  Qxe5 {[%clk 0:02:55]} 15. Nf3 {[%clk 0:02:30]}  Qe7 {[%clk 0:02:54]} 16. Ba6 {[%clk 0:02:29]}  Bc6 {[%clk 0:02:51]} 17. Bb5 {[%clk 0:02:29]}  Bb7 {[%clk 0:02:51]} 18. Ba6 {[%clk 0:02:28]}  Bc6 {[%clk 0:02:51]} 19. h3 {[%clk 0:01:56]}  Rad8 {[%clk 0:02:49]} 20. Rfe1 {[%clk 0:01:50]}  Ne4 {[%clk 0:02:49]} 21. c4 {[%clk 0:01:47]}  dxc4 {[%clk 0:02:41]} 22. Bxc4 {[%clk 0:01:48]}  Qf6 {[%clk 0:02:37]} 23. Rxd8 {[%clk 0:01:40]}  Rxd8 {[%clk 0:02:35]} 24. Rd1 {[%clk 0:01:40]}  Rxd1+ {[%clk 0:02:16]} 25. Qxd1 {[%clk 0:01:39]}  g6 {[%clk 0:02:16]} 26. Qb3 {[%clk 0:01:18]}  Kg7 {[%clk 0:02:13]} 27. Bxf7 {[%clk 0:01:05]}  Nxf2 {[%clk 0:01:53]} 28. Kxf2 {[%clk 0:00:40]}  Bxf3 {[%clk 0:01:53]} 29. gxf3 {[%clk 0:00:36]}  Qxf7 {[%clk 0:01:52]} 30. Qxf7+ {[%clk 0:00:35]}  Kxf7 {[%clk 0:01:53]} 31. f4 {[%clk 0:00:32]}  Kf6 {[%clk 0:01:42]} 32. e4 {[%clk 0:00:33]}  g5 {[%clk 0:01:40]} 33. f5 {[%clk 0:00:24]}  Ke5 {[%clk 0:01:35]} 34. a4 {[%clk 0:00:20]}  a6 {[%clk 0:01:32]} 35. Kf3 {[%clk 0:00:21]}  h5 {[%clk 0:01:30]} 36. Ke3 {[%clk 0:00:21]}  b5 {[%clk 0:01:29]} 37. a5 {[%clk 0:00:16]}  c4 {[%clk 0:01:27]} 38. Kd2 {[%clk 0:00:17]}  b4 {[%clk 0:01:22]} 39. Ke3 {[%clk 0:00:17]}  g4 {[%clk 0:01:21]} 40. hxg4 {[%clk 0:00:17]}  hxg4 {[%clk 0:01:21]} 41. Ke2 {[%clk 0:00:18]}  c3 {[%clk 0:01:20]} 42. bxc3 {[%clk 0:00:18]}  bxc3 {[%clk 0:01:20]} 43. Kd3 {[%clk 0:00:18]}  g3 {[%clk 0:01:20]} 44. Kxc3 {[%clk 0:00:19]}  g2 {[%clk 0:01:20]} 45. Kc4 {[%clk 0:00:20]}  g1=Q {[%clk 0:01:20]} 0-1


[Site "https://www.chess.com"]

[Event "Titled Tuesday Blitz April 25 Late 2023"]
[White "Bruedigam, Martin"]
[Black "Le Goff, Ronan"]
[WhiteFideId "24608033"]
[BlackFideId "612073"]
[WhiteElo "2331"]
[BlackElo "2275"]
[Result "1-0"]
[Round "05"]
[TimeControl "180+2"]
[Date "2023.04.25"]
[WhiteClock "0:00:57"]
[BlackClock "0:00:48"]

1. d4 {[%clk 0:03:00]}  Nf6 {[%clk 0:02:51]} 2. c4 {[%clk 0:03:00]}  e6 {[%clk 0:02:41]} 3. Nc3 {[%clk 0:02:59]}  Bb4 {[%clk 0:02:41]} 4. Bd2 {[%clk 0:03:00]}  O-O {[%clk 0:02:40]} 5. e3 {[%clk 0:03:00]}  b6 {[%clk 0:02:40]} 6. Nf3 {[%clk 0:02:59]}  Bb7 {[%clk 0:02:40]} 7. Bd3 {[%clk 0:03:00]}  d5 {[%clk 0:02:40]} 8. cxd5 {[%clk 0:02:55]}  exd5 {[%clk 0:02:38]} 9. Rc1 {[%clk 0:02:53]}  Re8 {[%clk 0:02:38]} 10. O-O {[%clk 0:02:52]}  a6 {[%clk 0:02:38]} 11. Ne5 {[%clk 0:02:50]}  Bxc3 {[%clk 0:02:36]} 12. Bxc3 {[%clk 0:02:49]}  Nbd7 {[%clk 0:02:36]} 13. Nf3 {[%clk 0:02:43]}  Ne4 {[%clk 0:02:34]} 14. Bb4 {[%clk 0:02:42]}  c5 {[%clk 0:02:32]} 15. dxc5 {[%clk 0:02:42]}  Ndxc5 {[%clk 0:02:30]} 16. Bb1 {[%clk 0:02:41]}  a5 {[%clk 0:02:28]} 17. Ba3 {[%clk 0:02:41]}  Rc8 {[%clk 0:02:24]} 18. b3 {[%clk 0:02:36]}  Qf6 {[%clk 0:02:22]} 19. Qd4 {[%clk 0:02:28]}  Qxd4 {[%clk 0:02:10]} 20. exd4 {[%clk 0:02:22]}  Ne6 {[%clk 0:02:09]} 21. Bb2 {[%clk 0:02:09]}  Nf4 {[%clk 0:02:04]} 22. Rxc8 {[%clk 0:02:02]}  Rxc8 {[%clk 0:02:00]} 23. g3 {[%clk 0:01:53]}  Ne2+ {[%clk 0:01:55]} 24. Kg2 {[%clk 0:01:52]}  Ba6 {[%clk 0:01:51]} 25. Re1 {[%clk 0:01:46]}  N2c3 {[%clk 0:01:43]} 26. Bxc3 {[%clk 0:01:34]}  Rxc3 {[%clk 0:01:41]} 27. Ne5 {[%clk 0:01:24]}  h5 {[%clk 0:01:26]} 28. h4 {[%clk 0:01:17]}  g6 {[%clk 0:01:21]} 29. Nd7 {[%clk 0:01:08]}  Rc6 {[%clk 0:01:03]} 30. Nb8 {[%clk 0:01:03]}  Rf6 {[%clk 0:00:48]} 31. Bxe4 {[%clk 0:00:57]} 1-0


[Site "https://www.chess.com"]

[Event "Titled Tuesday Blitz April 25 Late 2023"]
[White "Fernandez Siles, Luis"]
[Black "Di Berardino, Diego Rafael"]
[WhiteFideId "2209420"]
[BlackFideId "2105446"]
[WhiteElo "2195"]
[BlackElo "2432"]
[Result "0-1"]
[Round "05"]
[TimeControl "180+2"]
[Date "2023.04.25"]
[WhiteClock "0:00:08"]
[BlackClock "0:00:11"]

1. e4 {[%clk 0:03:00]}  Nf6 {[%clk 0:02:57]} 2. Nc3 {[%clk 0:02:59]}  d5 {[%clk 0:02:52]} 3. e5 {[%clk 0:02:59]}  Nfd7 {[%clk 0:02:52]} 4. e6 {[%clk 0:02:57]}  fxe6 {[%clk 0:02:50]} 5. d4 {[%clk 0:02:58]}  Nc6 {[%clk 0:02:40]} 6. f4 {[%clk 0:02:51]}  g6 {[%clk 0:02:33]} 7. Nf3 {[%clk 0:02:39]}  Bg7 {[%clk 0:02:32]} 8. h4 {[%clk 0:02:35]}  Nf6 {[%clk 0:02:26]} 9. h5 {[%clk 0:02:30]}  Nxh5 {[%clk 0:02:11]} 10. Rxh5 {[%clk 0:02:30]}  gxh5 {[%clk 0:02:12]} 11. Ne5 {[%clk 0:02:17]}  Nxe5 {[%clk 0:01:54]} 12. fxe5 {[%clk 0:02:12]}  c6 {[%clk 0:01:51]} 13. Qxh5+ {[%clk 0:01:54]}  Kd7 {[%clk 0:01:51]} 14. Be3 {[%clk 0:01:43]}  Qe8 {[%clk 0:01:48]} 15. Qh3 {[%clk 0:01:29]}  Kc7 {[%clk 0:01:46]} 16. Be2 {[%clk 0:01:24]}  Qg6 {[%clk 0:01:34]} 17. O-O-O {[%clk 0:01:19]}  h5 {[%clk 0:01:33]} 18. Rf1 {[%clk 0:01:05]}  Bd7 {[%clk 0:01:23]} 19. Rf3 {[%clk 0:01:01]}  Bh6 {[%clk 0:01:20]} 20. Nd1 {[%clk 0:00:51]}  Raf8 {[%clk 0:01:11]} 21. Rxf8 {[%clk 0:00:46]}  Rxf8 {[%clk 0:01:02]} 22. Qxh5 {[%clk 0:00:42]}  Qxh5 {[%clk 0:00:54]} 23. Bxh5 {[%clk 0:00:41]}  Bxe3+ {[%clk 0:00:53]} 24. Nxe3 {[%clk 0:00:42]}  Be8 {[%clk 0:00:51]} 25. Bg4 {[%clk 0:00:24]}  Kd7 {[%clk 0:00:50]} 26. Bf3 {[%clk 0:00:20]}  Bg6 {[%clk 0:00:49]} 27. c3 {[%clk 0:00:20]}  Rh8 {[%clk 0:00:46]} 28. Kd2 {[%clk 0:00:20]}  a5 {[%clk 0:00:45]} 29. Ke2 {[%clk 0:00:20]}  a4 {[%clk 0:00:42]} 30. Kf2 {[%clk 0:00:20]}  Rh1 {[%clk 0:00:42]} 31. Nf1 {[%clk 0:00:19]}  Bd3 {[%clk 0:00:39]} 32. Be2 {[%clk 0:00:18]}  Bxe2 {[%clk 0:00:38]} 33. Kxe2 {[%clk 0:00:19]}  Ke8 {[%clk 0:00:34]} 34. Kf2 {[%clk 0:00:20]}  Kf7 {[%clk 0:00:34]} 35. g4 {[%clk 0:00:18]}  Kg6 {[%clk 0:00:32]} 36. Kg2 {[%clk 0:00:19]}  Rh4 {[%clk 0:00:28]} 37. Kg3 {[%clk 0:00:16]}  Kg5 {[%clk 0:00:28]} 38. Nh2 {[%clk 0:00:16]}  Rxh2 {[%clk 0:00:14]} 39. Kxh2 {[%clk 0:00:17]}  Kxg4 {[%clk 0:00:14]} 40. Kg2 {[%clk 0:00:17]}  Kf4 {[%clk 0:00:15]} 41. Kf2 {[%clk 0:00:18]}  Ke4 {[%clk 0:00:15]} 42. Ke2 {[%clk 0:00:18]}  b6 {[%clk 0:00:14]} 43. b3 {[%clk 0:00:16]}  axb3 {[%clk 0:00:14]} 44. axb3 {[%clk 0:00:16]}  c5 {[%clk 0:00:10]} 45. dxc5 {[%clk 0:00:15]}  bxc5 {[%clk 0:00:11]} 46. b4 {[%clk 0:00:11]}  cxb4 {[%clk 0:00:11]} 47. cxb4 {[%clk 0:00:11]}  Kxe5 {[%clk 0:00:11]} 48. b5 {[%clk 0:00:08]}  Kd6 {[%clk 0:00:11]} 0-1


[Site "https://www.chess.com"]